{"text_format":"3","workbook":"xlsx","n_sheets":2,"sheets":["INICIO","PRESUPUESTO PERSONAL"],"not_rendered":{"defined_names":2},"read":"whole","date_system":"1900"}

{"sheet":"INICIO","index":0,"n_rows":7,"n_cols":2,"rows_kept":7}
[null,"Acerca de la plantilla"]
[null,"Use esta plantilla para hacer un seguimiento de los presupuestos anuales y mensuales."]
[null,"Escriba los ingresos y los gastos en las tablas correspondientes para calcular la escasez o el superávit de efectivo de cada mes y año."]
[null,"Los minigráficos se actualizan automáticamente en las tablas."]
[null,"Nota: "]
[null,"Se facilitan instrucciones adicionales en la columna A de la hoja de cálculo PRESUPUESTO PERSONAL. Este texto se ocultó de forma intencionada. Para eliminar el texto, seleccione la columna A y, a continuación, ELIMINAR. Para mostrar el texto, seleccione la columna A y, a continuación, cambie el color de fuente."]
[null,"Para obtener más información sobre las tablas, presione las teclas MAYÚS y F10 dentro de una tabla, seleccione la opción TABLA y, después, TEXTO ALTERNATIVO."]

{"sheet":"PRESUPUESTO PERSONAL","index":1,"n_rows":107,"n_cols":17,"rows_kept":107,"merged":[[1,1,1,3],[1,4,1,15],[27,2,27,16],[36,2,36,16],[43,2,43,16],[53,2,53,16],[62,2,62,16],[69,2,69,16],[79,2,79,16],[87,2,87,16],[95,2,95,16],[103,2,103,16]]}
["Cree un sencillo presupuesto personal en esta hoja de cálculo. Encontrará instrucciones útiles sobre cómo usar esta hoja de cálculo en las celdas de esta columna. Presione la flecha abajo para empezar."]
["El título de la hoja de cálculo está en la celda derecha. Escriba el año en la celda Q2. La instrucción siguiente se encuentra en la celda A4.","PRESUPUESTO PERSONAL",{"$nulls":14},{"$f":"YEAR(TODAY())","v":2019}]
[]
["Las etiquetas están en las celdas C4 a P4.",null,"GANANCIAS","ENE","FEB","MAR","ABR","MAY","JUN","JUL","AGO","SEP","OCT","NOV","DIC","AÑO"]
["Escriba la información en la tabla Ingresos que comienza en la celda C5. La instrucción siguiente se encuentra en la celda A11.",null,"INGRESOS","Enero","Febrero","Marzo","Abril","Mayo","Junio","Julio","Agosto","Septiembre","Octubre","Noviembre","Diciembre","Año","Minigráfico"]
[null,null,"Salarios",{"v":2600,"d":"2,600.00 €"},{"v":2600,"d":"2,600.00 €"},{"v":2600,"d":"2,600.00 €"},{"$nulls":9},{"$f":"SUM(Ingresos[[#This Row],[Enero]:[Diciembre]])","v":{"v":7800,"d":"7,800.00 €"}}]
[null,null,"Intereses y dividendos",{"v":649,"d":"649.00 €"},{"v":313,"d":"313.00 €"},{"v":664,"d":"664.00 €"},{"$nulls":9},{"$f":"SUM(Ingresos[[#This Row],[Enero]:[Diciembre]])","v":{"v":1626,"d":"1,626.00 €"}}]
[null,null,"Varios",{"v":474,"d":"474.00 €"},{"v":643,"d":"643.00 €"},{"v":380,"d":"380.00 €"},{"$nulls":9},{"$f":"SUM(Ingresos[[#This Row],[Enero]:[Diciembre]])","v":{"v":1497,"d":"1,497.00 €"}}]
[null,null,"Total",{"$f":"SUBTOTAL(109,Ingresos[Enero])","v":{"v":3723,"d":"3,723.00 €"}},{"$f":"SUBTOTAL(109,Ingresos[Febrero])","v":{"v":3556,"d":"3,556.00 €"}},{"$f":"SUBTOTAL(109,Ingresos[Marzo])","v":{"v":3644,"d":"3,644.00 €"}},{"$f":"SUBTOTAL(109,Ingresos[Abril])","v":{"v":0,"d":"0.00 €"}},{"$f":"SUBTOTAL(109,Ingresos[Mayo])","v":{"v":0,"d":"0.00 €"}},{"$f":"SUBTOTAL(109,Ingresos[Junio])","v":{"v":0,"d":"0.00 €"}},{"$f":"SUBTOTAL(109,Ingresos[Julio])","v":{"v":0,"d":"0.00 €"}},{"$f":"SUBTOTAL(109,Ingresos[Agosto])","v":{"v":0,"d":"0.00 €"}},{"$f":"SUBTOTAL(109,Ingresos[Septiembre])","v":{"v":0,"d":"0.00 €"}},{"$f":"SUBTOTAL(109,Ingresos[Octubre])","v":{"v":0,"d":"0.00 €"}},{"$f":"SUBTOTAL(109,Ingresos[Noviembre])","v":{"v":0,"d":"0.00 €"}},{"$f":"SUBTOTAL(109,Ingresos[Diciembre])","v":{"v":0,"d":"0.00 €"}},{"$f":"SUBTOTAL(109,Ingresos[Año])","v":{"v":10923,"d":"10,923.00 €"}}]
[]
["Las etiquetas están en las celdas C11 a P11.",null,"GASTOS","ENE","FEB","MAR","ABR","MAY","JUN","JUL","AGO","SEP","OCT","NOV","DIC","AÑO"]
["En la tabla a partir de la celda C12, escriba los gastos domésticos. La instrucción siguiente se encuentra en la celda A20.",null,"PARTICULAR","Enero","Febrero","Marzo","Abril","Mayo","Junio","Julio","Agosto","Septiembre","Octubre","Noviembre","Diciembre","Año","Minigráfico"]
[null,null,"Hipoteca",{"v":750,"d":"750.00 €"},{"v":750,"d":"750.00 €"},{"v":750,"d":"750.00 €"},{"$nulls":9},{"$f":"SUM(Hogar[[#This Row],[Enero]:[Diciembre]])","v":{"v":2250,"d":"2,250.00 €"}}]
[null,null,"Seguro",{"$nulls":12},{"$f":"SUM(Hogar[[#This Row],[Enero]:[Diciembre]])","v":{"v":0,"d":"0.00 €"}}]
[null,null,"Reparaciones",null,null,{"v":75,"d":"75.00 €"},{"$nulls":9},{"$f":"SUM(Hogar[[#This Row],[Enero]:[Diciembre]])","v":{"v":75,"d":"75.00 €"}}]
[null,null,"Servicios",{"v":35,"d":"35.00 €"},{"v":35,"d":"35.00 €"},{"v":35,"d":"35.00 €"},{"$nulls":9},{"$f":"SUM(Hogar[[#This Row],[Enero]:[Diciembre]])","v":{"v":105,"d":"105.00 €"}}]
[null,null,"Suministros",{"v":165,"d":"165.00 €"},{"v":165,"d":"165.00 €"},{"v":165,"d":"165.00 €"},{"$nulls":9},{"$f":"SUM(Hogar[[#This Row],[Enero]:[Diciembre]])","v":{"v":495,"d":"495.00 €"}}]
[null,null,"Total",{"$f":"SUBTOTAL(109,Hogar[Enero])","v":{"v":950,"d":"950.00 €"}},{"$f":"SUBTOTAL(109,Hogar[Febrero])","v":{"v":950,"d":"950.00 €"}},{"$f":"SUBTOTAL(109,Hogar[Marzo])","v":{"v":1025,"d":"1,025.00 €"}},{"$f":"SUBTOTAL(109,Hogar[Abril])","v":{"v":0,"d":"0.00 €"}},{"$f":"SUBTOTAL(109,Hogar[Mayo])","v":{"v":0,"d":"0.00 €"}},{"$f":"SUBTOTAL(109,Hogar[Junio])","v":{"v":0,"d":"0.00 €"}},{"$f":"SUBTOTAL(109,Hogar[Julio])","v":{"v":0,"d":"0.00 €"}},{"$f":"SUBTOTAL(109,Hogar[Agosto])","v":{"v":0,"d":"0.00 €"}},{"$f":"SUBTOTAL(109,Hogar[Septiembre])","v":{"v":0,"d":"0.00 €"}},{"$f":"SUBTOTAL(109,Hogar[Octubre])","v":{"v":0,"d":"0.00 €"}},{"$f":"SUBTOTAL(109,Hogar[Noviembre])","v":{"v":0,"d":"0.00 €"}},{"$f":"SUBTOTAL(109,Hogar[Diciembre])","v":{"v":0,"d":"0.00 €"}},{"$f":"SUBTOTAL(109,Hogar[Año])","v":{"v":2925,"d":"2,925.00 €"}}]
[]
["En la tabla a partir de la celda C20, escriba los gastos diarios. La instrucción siguiente se encuentra en la celda A29.",null,"VIDA DIARIA","Enero","Febrero","Marzo","Abril","Mayo","Junio","Julio","Agosto","Septiembre","Octubre","Noviembre","Diciembre","Año","Minigráfico"]
[null,null,"Provisiones ",{"v":191,"d":"191.00 €"},{"v":152,"d":"152.00 €"},{"v":145,"d":"145.00 €"},{"$nulls":9},{"$f":"SUM(Diario[[#This Row],[Enero]:[Diciembre]])","v":{"v":488,"d":"488.00 €"}}]
[null,null,"Cuidado de los niños",{"v":200,"d":"200.00 €"},{"v":200,"d":"200.00 €"},{"v":200,"d":"200.00 €"},{"$nulls":9},{"$f":"SUM(Diario[[#This Row],[Enero]:[Diciembre]])","v":{"v":600,"d":"600.00 €"}}]
[null,null,"Tintorería",{"v":20,"d":"20.00 €"},null,{"v":20,"d":"20.00 €"},{"$nulls":9},{"$f":"SUM(Diario[[#This Row],[Enero]:[Diciembre]])","v":{"v":40,"d":"40.00 €"}}]
[null,null,"Restaurantes",{"v":55,"d":"55.00 €"},null,{"v":56,"d":"56.00 €"},{"$nulls":9},{"$f":"SUM(Diario[[#This Row],[Enero]:[Diciembre]])","v":{"v":111,"d":"111.00 €"}}]
[null,null,"Servicio de limpieza",{"v":25,"d":"25.00 €"},{"v":17,"d":"17.00 €"},{"v":7,"d":"7.00 €"},{"$nulls":9},{"$f":"SUM(Diario[[#This Row],[Enero]:[Diciembre]])","v":{"v":49,"d":"49.00 €"}}]
[null,null,"Cuidado del perro",{"v":10,"d":"10.00 €"},{"v":5,"d":"5.00 €"},{"v":7,"d":"7.00 €"},{"$nulls":9},{"$f":"SUM(Diario[[#This Row],[Enero]:[Diciembre]])","v":{"v":22,"d":"22.00 €"}}]
[null,null,"Total",{"$f":"SUBTOTAL(109,Diario[Enero])","v":{"v":501,"d":"501.00 €"}},{"$f":"SUBTOTAL(109,Diario[Febrero])","v":{"v":374,"d":"374.00 €"}},{"$f":"SUBTOTAL(109,Diario[Marzo])","v":{"v":435,"d":"435.00 €"}},{"$f":"SUBTOTAL(109,Diario[Abril])","v":{"v":0,"d":"0.00 €"}},{"$f":"SUBTOTAL(109,Diario[Mayo])","v":{"v":0,"d":"0.00 €"}},{"$f":"SUBTOTAL(109,Diario[Junio])","v":{"v":0,"d":"0.00 €"}},{"$f":"SUBTOTAL(109,Diario[Julio])","v":{"v":0,"d":"0.00 €"}},{"$f":"SUBTOTAL(109,Diario[Agosto])","v":{"v":0,"d":"0.00 €"}},{"$f":"SUBTOTAL(109,Diario[Septiembre])","v":{"v":0,"d":"0.00 €"}},{"$f":"SUBTOTAL(109,Diario[Octubre])","v":{"v":0,"d":"0.00 €"}},{"$f":"SUBTOTAL(109,Diario[Noviembre])","v":{"v":0,"d":"0.00 €"}},{"$f":"SUBTOTAL(109,Diario[Diciembre])","v":{"v":0,"d":"0.00 €"}},{"$f":"SUBTOTAL(109,Diario[Año])","v":{"v":1310,"d":"1,310.00 €"}}]
[]
["En la tabla a partir de la celda C29, escriba los gastos de transporte. La instrucción siguiente se encuentra en la celda A38.",null,"TRANSPORTE","Enero","Febrero","Marzo","Abril","Mayo","Junio","Julio","Agosto","Septiembre","Octubre","Noviembre","Diciembre","Año","Minigráfico"]
[null,null,"Gas/combustible",{"v":195,"d":"195.00 €"},{"v":125,"d":"125.00 €"},{"v":171,"d":"171.00 €"},{"$nulls":9},{"$f":"SUM(Transporte[[#This Row],[Enero]:[Diciembre]])","v":{"v":491,"d":"491.00 €"}}]
[null,null,"Seguro",{"v":165,"d":"165.00 €"},{"v":165,"d":"165.00 €"},{"v":165,"d":"165.00 €"},{"$nulls":9},{"$f":"SUM(Transporte[[#This Row],[Enero]:[Diciembre]])","v":{"v":495,"d":"495.00 €"}}]
[null,null,"Reparaciones",{"$nulls":12},{"$f":"SUM(Transporte[[#This Row],[Enero]:[Diciembre]])","v":{"v":0,"d":"0.00 €"}}]
[null,null,"Lavado del coche y servicios de detalles similares",{"v":10,"d":"10.00 €"},{"$nulls":11},{"$f":"SUM(Transporte[[#This Row],[Enero]:[Diciembre]])","v":{"v":10,"d":"10.00 €"}}]
[null,null,"Aparcamiento",{"v":10,"d":"10.00 €"},{"v":40,"d":"40.00 €"},{"v":20,"d":"20.00 €"},{"$nulls":9},{"$f":"SUM(Transporte[[#This Row],[Enero]:[Diciembre]])","v":{"v":70,"d":"70.00 €"}}]
[null,null,"Transporte público",{"v":20,"d":"20.00 €"},{"v":40,"d":"40.00 €"},{"v":30,"d":"30.00 €"},{"$nulls":9},{"$f":"SUM(Transporte[[#This Row],[Enero]:[Diciembre]])","v":{"v":90,"d":"90.00 €"}}]
[null,null,"Total",{"$f":"SUBTOTAL(109,Transporte[Enero])","v":{"v":400,"d":"400.00 €"}},{"$f":"SUBTOTAL(109,Transporte[Febrero])","v":{"v":370,"d":"370.00 €"}},{"$f":"SUBTOTAL(109,Transporte[Marzo])","v":{"v":386,"d":"386.00 €"}},{"$f":"SUBTOTAL(109,Transporte[Abril])","v":{"v":0,"d":"0.00 €"}},{"$f":"SUBTOTAL(109,Transporte[Mayo])","v":{"v":0,"d":"0.00 €"}},{"$f":"SUBTOTAL(109,Transporte[Junio])","v":{"v":0,"d":"0.00 €"}},{"$f":"SUBTOTAL(109,Transporte[Julio])","v":{"v":0,"d":"0.00 €"}},{"$f":"SUBTOTAL(109,Transporte[Agosto])","v":{"v":0,"d":"0.00 €"}},{"$f":"SUBTOTAL(109,Transporte[Septiembre])","v":{"v":0,"d":"0.00 €"}},{"$f":"SUBTOTAL(109,Transporte[Octubre])","v":{"v":0,"d":"0.00 €"}},{"$f":"SUBTOTAL(109,Transporte[Noviembre])","v":{"v":0,"d":"0.00 €"}},{"$f":"SUBTOTAL(109,Transporte[Diciembre])","v":{"v":0,"d":"0.00 €"}},{"$f":"SUBTOTAL(109,Transporte[Año])","v":{"v":1156,"d":"1,156.00 €"}}]
[]
["En la tabla a partir de la celda C38, escriba los gastos relacionados con el entretenimiento. La instrucción siguiente se encuentra en la celda A45.",null,"ENTRETENIMIENTO","Enero","Febrero","Marzo","Abril","Mayo","Junio","Julio","Agosto","Septiembre","Octubre","Noviembre","Diciembre","Año","Minigráfico"]
[null,null,"Televisión por cable",{"v":85,"d":"85.00 €"},{"v":85,"d":"85.00 €"},{"v":85,"d":"85.00 €"},{"$nulls":9},{"$f":"SUM(Entretenimiento[[#This Row],[Enero]:[Diciembre]])","v":{"v":255,"d":"255.00 €"}}]
[null,null,"Alquiler de vídeo o DVD",{"v":7,"d":"7.00 €"},{"v":8,"d":"8.00 €"},{"v":9,"d":"9.00 €"},{"$nulls":9},{"$f":"SUM(Entretenimiento[[#This Row],[Enero]:[Diciembre]])","v":{"v":24,"d":"24.00 €"}}]
[null,null,"Películas y juegos",{"v":9,"d":"9.00 €"},{"v":5,"d":"5.00 €"},{"v":9,"d":"9.00 €"},{"$nulls":9},{"$f":"SUM(Entretenimiento[[#This Row],[Enero]:[Diciembre]])","v":{"v":23,"d":"23.00 €"}}]
[null,null,"Conciertos y discotecas",{"v":5,"d":"5.00 €"},{"v":5,"d":"5.00 €"},{"v":7,"d":"7.00 €"},{"$nulls":9},{"$f":"SUM(Entretenimiento[[#This Row],[Enero]:[Diciembre]])","v":{"v":17,"d":"17.00 €"}}]
[null,null,"Total",{"$f":"SUBTOTAL(109,Entretenimiento[Enero])","v":{"v":106,"d":"106.00 €"}},{"$f":"SUBTOTAL(109,Entretenimiento[Febrero])","v":{"v":103,"d":"103.00 €"}},{"$f":"SUBTOTAL(109,Entretenimiento[Marzo])","v":{"v":110,"d":"110.00 €"}},{"$f":"SUBTOTAL(109,Entretenimiento[Abril])","v":{"v":0,"d":"0.00 €"}},{"$f":"SUBTOTAL(109,Entretenimiento[Mayo])","v":{"v":0,"d":"0.00 €"}},{"$f":"SUBTOTAL(109,Entretenimiento[Junio])","v":{"v":0,"d":"0.00 €"}},{"$f":"SUBTOTAL(109,Entretenimiento[Julio])","v":{"v":0,"d":"0.00 €"}},{"$f":"SUBTOTAL(109,Entretenimiento[Agosto])","v":{"v":0,"d":"0.00 €"}},{"$f":"SUBTOTAL(109,Entretenimiento[Septiembre])","v":{"v":0,"d":"0.00 €"}},{"$f":"SUBTOTAL(109,Entretenimiento[Octubre])","v":{"v":0,"d":"0.00 €"}},{"$f":"SUBTOTAL(109,Entretenimiento[Noviembre])","v":{"v":0,"d":"0.00 €"}},{"$f":"SUBTOTAL(109,Entretenimiento[Diciembre])","v":{"v":0,"d":"0.00 €"}},{"$f":"SUBTOTAL(109,Entretenimiento[Año])","v":{"v":319,"d":"319.00 €"}}]
[]
["En la tabla a partir de la celda C45, escriba los gastos sanitarios. La instrucción siguiente se encuentra en la celda A55.",null,"SALUD","Enero","Febrero","Marzo","Abril","Mayo","Junio","Julio","Agosto","Septiembre","Octubre","Noviembre","Diciembre","Año","Minigráfico"]
[null,null,"Cuota del gimnasio",{"v":50,"d":"50.00 €"},{"v":50,"d":"50.00 €"},{"v":50,"d":"50.00 €"},{"$nulls":9},{"$f":"SUM(Salud[[#This Row],[Enero]:[Diciembre]])","v":{"v":150,"d":"150.00 €"}}]
[null,null,"Seguro",{"v":225,"d":"225.00 €"},{"v":225,"d":"225.00 €"},{"v":225,"d":"225.00 €"},{"$nulls":9},{"$f":"SUM(Salud[[#This Row],[Enero]:[Diciembre]])","v":{"v":675,"d":"675.00 €"}}]
[null,null,"Recetas",{"v":100,"d":"100.00 €"},{"v":100,"d":"100.00 €"},{"v":100,"d":"100.00 €"},{"$nulls":9},{"$f":"SUM(Salud[[#This Row],[Enero]:[Diciembre]])","v":{"v":300,"d":"300.00 €"}}]
[null,null,"Medicamentos sin receta",{"v":6,"d":"6.00 €"},{"v":2,"d":"2.00 €"},{"v":9,"d":"9.00 €"},{"$nulls":9},{"$f":"SUM(Salud[[#This Row],[Enero]:[Diciembre]])","v":{"v":17,"d":"17.00 €"}}]
[null,null,"Copagos y gastos de bolsillo",{"v":20,"d":"20.00 €"},null,{"v":41,"d":"41.00 €"},{"$nulls":9},{"$f":"SUM(Salud[[#This Row],[Enero]:[Diciembre]])","v":{"v":61,"d":"61.00 €"}}]
[null,null,"Veterinario y medicamentos para las mascotas",{"v":4,"d":"4.00 €"},null,{"v":25,"d":"25.00 €"},{"$nulls":9},{"$f":"SUM(Salud[[#This Row],[Enero]:[Diciembre]])","v":{"v":29,"d":"29.00 €"}}]
[null,null,"Seguro de vida",{"v":55,"d":"55.00 €"},{"v":55,"d":"55.00 €"},{"v":55,"d":"55.00 €"},{"$nulls":9},{"$f":"SUM(Salud[[#This Row],[Enero]:[Diciembre]])","v":{"v":165,"d":"165.00 €"}}]
[null,null,"Total",{"$f":"SUBTOTAL(109,Salud[Enero])","v":{"v":460,"d":"460.00 €"}},{"$f":"SUBTOTAL(109,Salud[Febrero])","v":{"v":432,"d":"432.00 €"}},{"$f":"SUBTOTAL(109,Salud[Marzo])","v":{"v":505,"d":"505.00 €"}},{"$f":"SUBTOTAL(109,Salud[Abril])","v":{"v":0,"d":"0.00 €"}},{"$f":"SUBTOTAL(109,Salud[Mayo])","v":{"v":0,"d":"0.00 €"}},{"$f":"SUBTOTAL(109,Salud[Junio])","v":{"v":0,"d":"0.00 €"}},{"$f":"SUBTOTAL(109,Salud[Julio])","v":{"v":0,"d":"0.00 €"}},{"$f":"SUBTOTAL(109,Salud[Agosto])","v":{"v":0,"d":"0.00 €"}},{"$f":"SUBTOTAL(109,Salud[Septiembre])","v":{"v":0,"d":"0.00 €"}},{"$f":"SUBTOTAL(109,Salud[Octubre])","v":{"v":0,"d":"0.00 €"}},{"$f":"SUBTOTAL(109,Salud[Noviembre])","v":{"v":0,"d":"0.00 €"}},{"$f":"SUBTOTAL(109,Salud[Diciembre])","v":{"v":0,"d":"0.00 €"}},{"$f":"SUBTOTAL(109,Salud[Año])","v":{"v":1397,"d":"1,397.00 €"}}]
[]
["En la tabla a partir de la celda C55, escriba los gastos relacionados con las vacaciones. La instrucción siguiente está en la celda A64.",null,"VACACIONES","Enero","Febrero","Marzo","Abril","Mayo","Junio","Julio","Agosto","Septiembre","Octubre","Noviembre","Diciembre","Año","Minigráfico"]
[null,null,"Billetes de avión",null,{"v":485,"d":"485.00 €"},{"$nulls":10},{"$f":"SUM(Vacaciones[[#This Row],[Enero]:[Diciembre]])","v":{"v":485,"d":"485.00 €"}}]
[null,null,"Hoteles",null,{"v":245,"d":"245.00 €"},{"$nulls":10},{"$f":"SUM(Vacaciones[[#This Row],[Enero]:[Diciembre]])","v":{"v":245,"d":"245.00 €"}}]
[null,null,"Comida",null,{"v":95,"d":"95.00 €"},{"$nulls":10},{"$f":"SUM(Vacaciones[[#This Row],[Enero]:[Diciembre]])","v":{"v":95,"d":"95.00 €"}}]
[null,null,"Regalos",{"$nulls":12},{"$f":"SUM(Vacaciones[[#This Row],[Enero]:[Diciembre]])","v":{"v":0,"d":"0.00 €"}}]
[null,null,"Alojamiento de las mascotas",{"$nulls":12},{"$f":"SUM(Vacaciones[[#This Row],[Enero]:[Diciembre]])","v":{"v":0,"d":"0.00 €"}}]
[null,null,"Alquiler de coche",null,{"v":85,"d":"85.00 €"},{"$nulls":10},{"$f":"SUM(Vacaciones[[#This Row],[Enero]:[Diciembre]])","v":{"v":85,"d":"85.00 €"}}]
[null,null,"Total",{"$f":"SUBTOTAL(109,Vacaciones[Enero])","v":{"v":0,"d":"0.00 €"}},{"$f":"SUBTOTAL(109,Vacaciones[Febrero])","v":{"v":910,"d":"910.00 €"}},{"$f":"SUBTOTAL(109,Vacaciones[Marzo])","v":{"v":0,"d":"0.00 €"}},{"$f":"SUBTOTAL(109,Vacaciones[Abril])","v":{"v":0,"d":"0.00 €"}},{"$f":"SUBTOTAL(109,Vacaciones[Mayo])","v":{"v":0,"d":"0.00 €"}},{"$f":"SUBTOTAL(109,Vacaciones[Junio])","v":{"v":0,"d":"0.00 €"}},{"$f":"SUBTOTAL(109,Vacaciones[Julio])","v":{"v":0,"d":"0.00 €"}},{"$f":"SUBTOTAL(109,Vacaciones[Agosto])","v":{"v":0,"d":"0.00 €"}},{"$f":"SUBTOTAL(109,Vacaciones[Septiembre])","v":{"v":0,"d":"0.00 €"}},{"$f":"SUBTOTAL(109,Vacaciones[Octubre])","v":{"v":0,"d":"0.00 €"}},{"$f":"SUBTOTAL(109,Vacaciones[Noviembre])","v":{"v":0,"d":"0.00 €"}},{"$f":"SUBTOTAL(109,Vacaciones[Diciembre])","v":{"v":0,"d":"0.00 €"}},{"$f":"SUBTOTAL(109,Vacaciones[Año])","v":{"v":910,"d":"910.00 €"}}]
[]
["En la tabla a partir de la celda C64, escriba los gastos relacionados con el ocio. La siguiente instrucción se encuentra en la celda A71.",null,"Ocio","Enero","Febrero","Marzo","Abril","Mayo","Junio","Julio","Agosto","Septiembre","Octubre","Noviembre","Diciembre","Año","Minigráfico"]
[null,null,"Gastos del gimnasio",{"$nulls":12},{"$f":"SUM(Recreo[[#This Row],[Enero]:[Diciembre]])","v":{"v":0,"d":"0.00 €"}}]
[null,null,"Material deportivo",{"$nulls":12},{"$f":"SUM(Recreo[[#This Row],[Enero]:[Diciembre]])","v":{"v":0,"d":"0.00 €"}}]
[null,null,"Cuotas del equipo",{"$nulls":12},{"$f":"SUM(Recreo[[#This Row],[Enero]:[Diciembre]])","v":{"v":0,"d":"0.00 €"}}]
[null,null,"Juguetes y otros artículos para los niños",{"v":39,"d":"39.00 €"},{"v":33,"d":"33.00 €"},{"v":40,"d":"40.00 €"},{"$nulls":9},{"$f":"SUM(Recreo[[#This Row],[Enero]:[Diciembre]])","v":{"v":112,"d":"112.00 €"}}]
[null,null,"Total",{"$f":"SUBTOTAL(109,Recreo[Enero])","v":{"v":39,"d":"39.00 €"}},{"$f":"SUBTOTAL(109,Recreo[Febrero])","v":{"v":33,"d":"33.00 €"}},{"$f":"SUBTOTAL(109,Recreo[Marzo])","v":{"v":40,"d":"40.00 €"}},{"$f":"SUBTOTAL(109,Recreo[Abril])","v":{"v":0,"d":"0.00 €"}},{"$f":"SUBTOTAL(109,Recreo[Mayo])","v":{"v":0,"d":"0.00 €"}},{"$f":"SUBTOTAL(109,Recreo[Junio])","v":{"v":0,"d":"0.00 €"}},{"$f":"SUBTOTAL(109,Recreo[Julio])","v":{"v":0,"d":"0.00 €"}},{"$f":"SUBTOTAL(109,Recreo[Agosto])","v":{"v":0,"d":"0.00 €"}},{"$f":"SUBTOTAL(109,Recreo[Septiembre])","v":{"v":0,"d":"0.00 €"}},{"$f":"SUBTOTAL(109,Recreo[Octubre])","v":{"v":0,"d":"0.00 €"}},{"$f":"SUBTOTAL(109,Recreo[Noviembre])","v":{"v":0,"d":"0.00 €"}},{"$f":"SUBTOTAL(109,Recreo[Diciembre])","v":{"v":0,"d":"0.00 €"}},{"$f":"SUBTOTAL(109,Recreo[Año])","v":{"v":112,"d":"112.00 €"}}]
[]
["En la tabla a partir de la celda C71, escriba los gastos de cuotas y suscripciones. La instrucción siguiente se encuentra en la celda A81.",null,"CUOTAS Y SUSCRIPCIONES","Enero","Febrero","Marzo","Abril","Mayo","Junio","Julio","Agosto","Septiembre","Octubre","Noviembre","Diciembre","Año","Minigráfico"]
[null,null,"Revistas",{"$nulls":12},{"$f":"SUM(DuesAndSubscription[[#This Row],[Enero]:[Diciembre]])","v":{"v":0,"d":"0.00 €"}}]
[null,null,"Periódicos",{"$nulls":12},{"$f":"SUM(DuesAndSubscription[[#This Row],[Enero]:[Diciembre]])","v":{"v":0,"d":"0.00 €"}}]
[null,null,"Conexión a Internet",{"$nulls":12},{"$f":"SUM(DuesAndSubscription[[#This Row],[Enero]:[Diciembre]])","v":{"v":0,"d":"0.00 €"}}]
[null,null,"Radio pública",{"$nulls":12},{"$f":"SUM(DuesAndSubscription[[#This Row],[Enero]:[Diciembre]])","v":{"v":0,"d":"0.00 €"}}]
[null,null,"Televisión pública",{"$nulls":12},{"$f":"SUM(DuesAndSubscription[[#This Row],[Enero]:[Diciembre]])","v":{"v":0,"d":"0.00 €"}}]
[null,null,"Organizaciones religiosas",{"v":29,"d":"29.00 €"},{"v":18,"d":"18.00 €"},{"v":17,"d":"17.00 €"},{"$nulls":9},{"$f":"SUM(DuesAndSubscription[[#This Row],[Enero]:[Diciembre]])","v":{"v":64,"d":"64.00 €"}}]
[null,null,"Beneficencia",{"$nulls":12},{"$f":"SUM(DuesAndSubscription[[#This Row],[Enero]:[Diciembre]])","v":{"v":0,"d":"0.00 €"}}]
[null,null,"Total",{"$f":"SUBTOTAL(109,DuesAndSubscription[Enero])","v":{"v":29,"d":"29.00 €"}},{"$f":"SUBTOTAL(109,DuesAndSubscription[Febrero])","v":{"v":18,"d":"18.00 €"}},{"$f":"SUBTOTAL(109,DuesAndSubscription[Marzo])","v":{"v":17,"d":"17.00 €"}},{"$f":"SUBTOTAL(109,DuesAndSubscription[Abril])","v":{"v":0,"d":"0.00 €"}},{"$f":"SUBTOTAL(109,DuesAndSubscription[Mayo])","v":{"v":0,"d":"0.00 €"}},{"$f":"SUBTOTAL(109,DuesAndSubscription[Junio])","v":{"v":0,"d":"0.00 €"}},{"$f":"SUBTOTAL(109,DuesAndSubscription[Julio])","v":{"v":0,"d":"0.00 €"}},{"$f":"SUBTOTAL(109,DuesAndSubscription[Agosto])","v":{"v":0,"d":"0.00 €"}},{"$f":"SUBTOTAL(109,DuesAndSubscription[Septiembre])","v":{"v":0,"d":"0.00 €"}},{"$f":"SUBTOTAL(109,DuesAndSubscription[Octubre])","v":{"v":0,"d":"0.00 €"}},{"$f":"SUBTOTAL(109,DuesAndSubscription[Noviembre])","v":{"v":0,"d":"0.00 €"}},{"$f":"SUBTOTAL(109,DuesAndSubscription[Diciembre])","v":{"v":0,"d":"0.00 €"}},{"$f":"SUBTOTAL(109,DuesAndSubscription[Año])","v":{"v":64,"d":"64.00 €"}}]
[]
["En la tabla a partir de la celda C81, escriba los gastos personal. La instrucción siguiente se encuentra en la celda A89.",null,"PERSONAL","Enero","Febrero","Marzo","Abril","Mayo","Junio","Julio","Agosto","Septiembre","Octubre","Noviembre","Diciembre","Año","Minigráfico"]
[null,null,"Ropa",null,null,{"v":29,"d":"29.00 €"},{"$nulls":9},{"$f":"SUM(Personal[[#This Row],[Enero]:[Diciembre]])","v":{"v":29,"d":"29.00 €"}}]
[null,null,"Regalos",null,{"v":35,"d":"35.00 €"},{"$nulls":10},{"$f":"SUM(Personal[[#This Row],[Enero]:[Diciembre]])","v":{"v":35,"d":"35.00 €"}}]
[null,null,"Salones de belleza y barberías",{"v":25,"d":"25.00 €"},{"v":25,"d":"25.00 €"},{"v":25,"d":"25.00 €"},{"$nulls":9},{"$f":"SUM(Personal[[#This Row],[Enero]:[Diciembre]])","v":{"v":75,"d":"75.00 €"}}]
[null,null,"Libros",{"$nulls":12},{"$f":"SUM(Personal[[#This Row],[Enero]:[Diciembre]])","v":{"v":0,"d":"0.00 €"}}]
[null,null,"Música (CD, etc.)",{"$nulls":12},{"$f":"SUM(Personal[[#This Row],[Enero]:[Diciembre]])","v":{"v":0,"d":"0.00 €"}}]
[null,null,"Total",{"$f":"SUBTOTAL(109,Personal[Enero])","v":{"v":25,"d":"25.00 €"}},{"$f":"SUBTOTAL(109,Personal[Febrero])","v":{"v":60,"d":"60.00 €"}},{"$f":"SUBTOTAL(109,Personal[Marzo])","v":{"v":54,"d":"54.00 €"}},{"$f":"SUBTOTAL(109,Personal[Abril])","v":{"v":0,"d":"0.00 €"}},{"$f":"SUBTOTAL(109,Personal[Mayo])","v":{"v":0,"d":"0.00 €"}},{"$f":"SUBTOTAL(109,Personal[Junio])","v":{"v":0,"d":"0.00 €"}},{"$f":"SUBTOTAL(109,Personal[Julio])","v":{"v":0,"d":"0.00 €"}},{"$f":"SUBTOTAL(109,Personal[Agosto])","v":{"v":0,"d":"0.00 €"}},{"$f":"SUBTOTAL(109,Personal[Septiembre])","v":{"v":0,"d":"0.00 €"}},{"$f":"SUBTOTAL(109,Personal[Octubre])","v":{"v":0,"d":"0.00 €"}},{"$f":"SUBTOTAL(109,Personal[Noviembre])","v":{"v":0,"d":"0.00 €"}},{"$f":"SUBTOTAL(109,Personal[Diciembre])","v":{"v":0,"d":"0.00 €"}},{"$f":"SUBTOTAL(109,Personal[Año])","v":{"v":139,"d":"139.00 €"}}]
[]
["En la tabla a partir de la celda C89, escriba las obligaciones financieras. La siguiente instrucción se encuentra en la celda A97.",null,"OBLIGACIONES FINANCIERAS","Enero","Febrero","Marzo","Abril","Mayo","Junio","Julio","Agosto","Septiembre","Octubre","Noviembre","Diciembre","Año","Minigráfico"]
[null,null,"Ahorros a largo plazo",{"v":25,"d":"25.00 €"},{"v":25,"d":"25.00 €"},{"v":25,"d":"25.00 €"},{"$nulls":9},{"$f":"SUM(Finanzas[[#This Row],[Enero]:[Diciembre]])","v":{"v":75,"d":"75.00 €"}}]
[null,null,"Plan de jubilación",{"v":45,"d":"45.00 €"},{"v":45,"d":"45.00 €"},{"v":45,"d":"45.00 €"},{"$nulls":9},{"$f":"SUM(Finanzas[[#This Row],[Enero]:[Diciembre]])","v":{"v":135,"d":"135.00 €"}}]
[null,null,"Pagos con la tarjeta de crédito",{"v":75,"d":"75.00 €"},{"v":75,"d":"75.00 €"},{"v":75,"d":"75.00 €"},{"$nulls":9},{"$f":"SUM(Finanzas[[#This Row],[Enero]:[Diciembre]])","v":{"v":225,"d":"225.00 €"}}]
[null,null,"Impuesto sobre la renta (adicional)",{"$nulls":12},{"$f":"SUM(Finanzas[[#This Row],[Enero]:[Diciembre]])","v":{"v":0,"d":"0.00 €"}}]
[null,null,"Otras obligaciones",{"v":32,"d":"32.00 €"},{"v":34,"d":"34.00 €"},{"v":1,"d":"1.00 €"},{"$nulls":9},{"$f":"SUM(Finanzas[[#This Row],[Enero]:[Diciembre]])","v":{"v":67,"d":"67.00 €"}}]
[null,null,"Total",{"$f":"SUBTOTAL(109,Finanzas[Enero])","v":{"v":177,"d":"177.00 €"}},{"$f":"SUBTOTAL(109,Finanzas[Febrero])","v":{"v":179,"d":"179.00 €"}},{"$f":"SUBTOTAL(109,Finanzas[Marzo])","v":{"v":146,"d":"146.00 €"}},{"$f":"SUBTOTAL(109,Finanzas[Abril])","v":{"v":0,"d":"0.00 €"}},{"$f":"SUBTOTAL(109,Finanzas[Mayo])","v":{"v":0,"d":"0.00 €"}},{"$f":"SUBTOTAL(109,Finanzas[Junio])","v":{"v":0,"d":"0.00 €"}},{"$f":"SUBTOTAL(109,Finanzas[Julio])","v":{"v":0,"d":"0.00 €"}},{"$f":"SUBTOTAL(109,Finanzas[Agosto])","v":{"v":0,"d":"0.00 €"}},{"$f":"SUBTOTAL(109,Finanzas[Septiembre])","v":{"v":0,"d":"0.00 €"}},{"$f":"SUBTOTAL(109,Finanzas[Octubre])","v":{"v":0,"d":"0.00 €"}},{"$f":"SUBTOTAL(109,Finanzas[Noviembre])","v":{"v":0,"d":"0.00 €"}},{"$f":"SUBTOTAL(109,Finanzas[Diciembre])","v":{"v":0,"d":"0.00 €"}},{"$f":"SUBTOTAL(109,Finanzas[Año])","v":{"v":502,"d":"502.00 €"}}]
[]
["En la tabla a partir de la celda C97, escriba los gastos varios. La instrucción siguiente se encuentra en la celda A105.",null,"PAGOS VARIOS","Enero","Febrero","Marzo","Abril","Mayo","Junio","Julio","Agosto","Septiembre","Octubre","Noviembre","Diciembre","Año","Minigráfico"]
[null,null,"Otros",{"$nulls":12},{"$f":"SUM(Varios[[#This Row],[Enero]:[Diciembre]])","v":{"v":0,"d":"0.00 €"}}]
[null,null,"Otros",{"$nulls":12},{"$f":"SUM(Varios[[#This Row],[Enero]:[Diciembre]])","v":{"v":0,"d":"0.00 €"}}]
[null,null,"Otros",{"$nulls":12},{"$f":"SUM(Varios[[#This Row],[Enero]:[Diciembre]])","v":{"v":0,"d":"0.00 €"}}]
[null,null,"Otros",{"$nulls":12},{"$f":"SUM(Varios[[#This Row],[Enero]:[Diciembre]])","v":{"v":0,"d":"0.00 €"}}]
[null,null,"Otros",{"$nulls":12},{"$f":"SUM(Varios[[#This Row],[Enero]:[Diciembre]])","v":{"v":0,"d":"0.00 €"}}]
[null,null,"Total",{"$f":"SUBTOTAL(109,Varios[Enero])","v":{"v":0,"d":"0.00 €"}},{"$f":"SUBTOTAL(109,Varios[Febrero])","v":{"v":0,"d":"0.00 €"}},{"$f":"SUBTOTAL(109,Varios[Marzo])","v":{"v":0,"d":"0.00 €"}},{"$f":"SUBTOTAL(109,Varios[Abril])","v":{"v":0,"d":"0.00 €"}},{"$f":"SUBTOTAL(109,Varios[Mayo])","v":{"v":0,"d":"0.00 €"}},{"$f":"SUBTOTAL(109,Varios[Junio])","v":{"v":0,"d":"0.00 €"}},{"$f":"SUBTOTAL(109,Varios[Julio])","v":{"v":0,"d":"0.00 €"}},{"$f":"SUBTOTAL(109,Varios[Agosto])","v":{"v":0,"d":"0.00 €"}},{"$f":"SUBTOTAL(109,Varios[Septiembre])","v":{"v":0,"d":"0.00 €"}},{"$f":"SUBTOTAL(109,Varios[Octubre])","v":{"v":0,"d":"0.00 €"}},{"$f":"SUBTOTAL(109,Varios[Noviembre])","v":{"v":0,"d":"0.00 €"}},{"$f":"SUBTOTAL(109,Varios[Diciembre])","v":{"v":0,"d":"0.00 €"}},{"$f":"SUBTOTAL(109,Varios[Año])","v":{"v":0,"d":"0.00 €"}}]
[]
["Los valores de la table totales se calculan automáticamente en la tabla a partir de la celda C105. El totales de gastos y la escasez o el excedente de efectivo se calculan automáticamente cada mes y año completo, y los minigráficos se actualizan.",null,"TOTALES","ENE","FEB","MAR","ABR","MAY","JUN","JUL","AGO","SEP","OCT","NOV","DIC","AÑO","MINIGRÁFICO"]
[null,null,"Totales de gastos",{"$f":"SUM(Varios[[#Totals],[Enero]],Finanzas[[#Totals],[Enero]],Personal[[#Totals],[Enero]],DuesAndSubscription[[#Totals],[Enero]],Recreo[[#Totals],[Enero]],Vacaciones[[#Totals],[Enero]],Salud[[#Totals],[Enero]],Entretenimiento[[#Totals],[Enero]],Transporte[[#Totals],[Enero]],Diario[[#Totals],[Enero]],Hogar[[#Totals],[Enero]])","v":{"v":2687,"d":"2,687.00 €"}},{"$f":"SUM(Varios[[#Totals],[Febrero]],Finanzas[[#Totals],[Febrero]],Personal[[#Totals],[Febrero]],DuesAndSubscription[[#Totals],[Febrero]],Recreo[[#Totals],[Febrero]],Vacaciones[[#Totals],[Febrero]],Salud[[#Totals],[Febrero]],Entretenimiento[[#Totals],[Febrero]],Transporte[[#Totals],[Febrero]],Diario[[#Totals],[Febrero]],Hogar[[#Totals],[Febrero]])","v":{"v":3429,"d":"3,429.00 €"}},{"$f":"SUM(Varios[[#Totals],[Marzo]],Finanzas[[#Totals],[Marzo]],Personal[[#Totals],[Marzo]],DuesAndSubscription[[#Totals],[Marzo]],Recreo[[#Totals],[Marzo]],Vacaciones[[#Totals],[Marzo]],Salud[[#Totals],[Marzo]],Entretenimiento[[#Totals],[Marzo]],Transporte[[#Totals],[Marzo]],Diario[[#Totals],[Marzo]],Hogar[[#Totals],[Marzo]])","v":{"v":2718,"d":"2,718.00 €"}},{"$f":"SUM(Varios[[#Totals],[Abril]],Finanzas[[#Totals],[Abril]],Personal[[#Totals],[Abril]],DuesAndSubscription[[#Totals],[Abril]],Recreo[[#Totals],[Abril]],Vacaciones[[#Totals],[Abril]],Salud[[#Totals],[Abril]],Entretenimiento[[#Totals],[Abril]],Transporte[[#Totals],[Abril]],Diario[[#Totals],[Abril]],Hogar[[#Totals],[Abril]])","v":{"v":0,"d":"0.00 €"}},{"$f":"SUM(Varios[[#Totals],[Mayo]],Finanzas[[#Totals],[Mayo]],Personal[[#Totals],[Mayo]],DuesAndSubscription[[#Totals],[Mayo]],Recreo[[#Totals],[Mayo]],Vacaciones[[#Totals],[Mayo]],Salud[[#Totals],[Mayo]],Entretenimiento[[#Totals],[Mayo]],Transporte[[#Totals],[Mayo]],Diario[[#Totals],[Mayo]],Hogar[[#Totals],[Mayo]])","v":{"v":0,"d":"0.00 €"}},{"$f":"SUM(Varios[[#Totals],[Junio]],Finanzas[[#Totals],[Junio]],Personal[[#Totals],[Junio]],DuesAndSubscription[[#Totals],[Junio]],Recreo[[#Totals],[Junio]],Vacaciones[[#Totals],[Junio]],Salud[[#Totals],[Junio]],Entretenimiento[[#Totals],[Junio]],Transporte[[#Totals],[Junio]],Diario[[#Totals],[Junio]],Hogar[[#Totals],[Junio]])","v":{"v":0,"d":"0.00 €"}},{"$f":"SUM(Varios[[#Totals],[Julio]],Finanzas[[#Totals],[Julio]],Personal[[#Totals],[Julio]],DuesAndSubscription[[#Totals],[Julio]],Recreo[[#Totals],[Julio]],Vacaciones[[#Totals],[Julio]],Salud[[#Totals],[Julio]],Entretenimiento[[#Totals],[Julio]],Transporte[[#Totals],[Julio]],Diario[[#Totals],[Julio]],Hogar[[#Totals],[Julio]])","v":{"v":0,"d":"0.00 €"}},{"$f":"SUM(Varios[[#Totals],[Agosto]],Finanzas[[#Totals],[Agosto]],Personal[[#Totals],[Agosto]],DuesAndSubscription[[#Totals],[Agosto]],Recreo[[#Totals],[Agosto]],Vacaciones[[#Totals],[Agosto]],Salud[[#Totals],[Agosto]],Entretenimiento[[#Totals],[Agosto]],Transporte[[#Totals],[Agosto]],Diario[[#Totals],[Agosto]],Hogar[[#Totals],[Agosto]])","v":{"v":0,"d":"0.00 €"}},{"$f":"SUM(Varios[[#Totals],[Septiembre]],Finanzas[[#Totals],[Septiembre]],Personal[[#Totals],[Septiembre]],DuesAndSubscription[[#Totals],[Septiembre]],Recreo[[#Totals],[Septiembre]],Vacaciones[[#Totals],[Septiembre]],Salud[[#Totals],[Septiembre]],Entretenimiento[[#Totals],[Septiembre]],Transporte[[#Totals],[Septiembre]],Diario[[#Totals],[Septiembre]],Hogar[[#Totals],[Septiembre]])","v":{"v":0,"d":"0.00 €"}},{"$f":"SUM(Varios[[#Totals],[Octubre]],Finanzas[[#Totals],[Octubre]],Personal[[#Totals],[Octubre]],DuesAndSubscription[[#Totals],[Octubre]],Recreo[[#Totals],[Octubre]],Vacaciones[[#Totals],[Octubre]],Salud[[#Totals],[Octubre]],Entretenimiento[[#Totals],[Octubre]],Transporte[[#Totals],[Octubre]],Diario[[#Totals],[Octubre]],Hogar[[#Totals],[Octubre]])","v":{"v":0,"d":"0.00 €"}},{"$f":"SUM(Varios[[#Totals],[Noviembre]],Finanzas[[#Totals],[Noviembre]],Personal[[#Totals],[Noviembre]],DuesAndSubscription[[#Totals],[Noviembre]],Recreo[[#Totals],[Noviembre]],Vacaciones[[#Totals],[Noviembre]],Salud[[#Totals],[Noviembre]],Entretenimiento[[#Totals],[Noviembre]],Transporte[[#Totals],[Noviembre]],Diario[[#Totals],[Noviembre]],Hogar[[#Totals],[Noviembre]])","v":{"v":0,"d":"0.00 €"}},{"$f":"SUM(Varios[[#Totals],[Diciembre]],Finanzas[[#Totals],[Diciembre]],Personal[[#Totals],[Diciembre]],DuesAndSubscription[[#Totals],[Diciembre]],Recreo[[#Totals],[Diciembre]],Vacaciones[[#Totals],[Diciembre]],Salud[[#Totals],[Diciembre]],Entretenimiento[[#Totals],[Diciembre]],Transporte[[#Totals],[Diciembre]],Diario[[#Totals],[Diciembre]],Hogar[[#Totals],[Diciembre]])","v":{"v":0,"d":"0.00 €"}},{"$f":"SUM(Varios[[#Totals],[Año]],Finanzas[[#Totals],[Año]],Personal[[#Totals],[Año]],DuesAndSubscription[[#Totals],[Año]],Recreo[[#Totals],[Año]],Vacaciones[[#Totals],[Año]],Salud[[#Totals],[Año]],Entretenimiento[[#Totals],[Año]],Transporte[[#Totals],[Año]],Diario[[#Totals],[Año]],Hogar[[#Totals],[Año]])","v":{"v":8834,"d":"8,834.00 €"}}]
[null,null,"Efectivo a corto plazo y gastos extra",{"$f":"Ingresos[[#Totals],[Enero]]-D106","v":{"v":1036,"d":"1,036.00 €"}},{"$f":"Ingresos[[#Totals],[Febrero]]-E106","v":{"v":127,"d":"127.00 €"}},{"$f":"Ingresos[[#Totals],[Marzo]]-F106","v":{"v":926,"d":"926.00 €"}},{"$f":"Ingresos[[#Totals],[Abril]]-G106","v":{"v":0,"d":"0.00 €"}},{"$f":"Ingresos[[#Totals],[Mayo]]-H106","v":{"v":0,"d":"0.00 €"}},{"$f":"Ingresos[[#Totals],[Junio]]-I106","v":{"v":0,"d":"0.00 €"}},{"$f":"Ingresos[[#Totals],[Julio]]-J106","v":{"v":0,"d":"0.00 €"}},{"$f":"Ingresos[[#Totals],[Agosto]]-K106","v":{"v":0,"d":"0.00 €"}},{"$f":"Ingresos[[#Totals],[Septiembre]]-L106","v":{"v":0,"d":"0.00 €"}},{"$f":"Ingresos[[#Totals],[Octubre]]-M106","v":{"v":0,"d":"0.00 €"}},{"$f":"Ingresos[[#Totals],[Noviembre]]-N106","v":{"v":0,"d":"0.00 €"}},{"$f":"Ingresos[[#Totals],[Diciembre]]-O106","v":{"v":0,"d":"0.00 €"}},{"$f":"Ingresos[[#Totals],[Año]]-P106","v":{"v":2089,"d":"2,089.00 €"}}]